[Event "*** SCC Grand Prix: Titled Tuesday Blitz"]
[Site "Chess.com"]
[Date "2020.06.02"]
[Round "3"]
[White "vinniethepooh"]
[Black "mishanick"]
[Result "0-1"]
[WhiteElo "2580"]
[BlackElo "2951"]
[TimeControl "180+1"]
[EndTime "10:29:51 PDT"]
[Termination "mishanick won by resignation"]

1. d4 {[%clk 0:03:00.9]} 1... Nf6 {[%clk 0:02:59.7]} 2. c4 {[%clk 0:03:01.2]}
2... e6 {[%clk 0:02:59.4]} 3. Nc3 {[%clk 0:03:01.5]} 3... Bb4 {[%clk 0:02:57.3]}
4. e3 {[%clk 0:02:59]} 4... O-O {[%clk 0:02:56.7]} 5. Bd3 {[%clk 0:02:58.2]}
5... c5 {[%clk 0:02:56.3]} 6. Nf3 {[%clk 0:02:57.9]} 6... cxd4 {[%clk
0:02:56.3]} 7. exd4 {[%clk 0:02:58.8]} 7... d5 {[%clk 0:02:56.9]} 8. O-O {[%clk
0:02:58.3]} 8... dxc4 {[%clk 0:02:56.2]} 9. Bxc4 {[%clk 0:02:59.2]} 9... Nc6
{[%clk 0:02:54.8]} 10. Bg5 {[%clk 0:02:52.6]} 10... b6 {[%clk 0:02:53.2]} 11.
Qe2 {[%clk 0:02:23.8]} 11... Nxd4 {[%clk 0:02:39]} 12. Nxd4 {[%clk 0:02:20]}
12... Qxd4 {[%clk 0:02:39.9]} 13. Rad1 {[%clk 0:02:16.4]} 13... Qg4 {[%clk
0:02:39.6]} 14. Bxf6 {[%clk 0:02:01.8]} 14... Qxe2 {[%clk 0:02:36.8]} 15. Bxe2
{[%clk 0:01:54]} 15... gxf6 {[%clk 0:02:37.2]} 16. Bf3 {[%clk 0:01:49.4]} 16...
Rb8 {[%clk 0:02:35.7]} 17. Ne4 {[%clk 0:01:48.2]} 17... f5 {[%clk 0:02:32.3]}
18. Nf6+ {[%clk 0:01:46.9]} 18... Kg7 {[%clk 0:02:31.8]} 19. Nd7 {[%clk
0:01:47.8]} 19... Bxd7 {[%clk 0:02:25.3]} 20. Rxd7 {[%clk 0:01:48.7]} 20... a5
{[%clk 0:02:23.7]} 21. a3 {[%clk 0:01:46.1]} 21... Bc5 {[%clk 0:02:23.1]} 22.
Rfd1 {[%clk 0:01:43.3]} 22... Kg6 {[%clk 0:02:21.5]} 23. g3 {[%clk 0:01:43.1]}
23... Rbc8 {[%clk 0:02:16.6]} 24. Kg2 {[%clk 0:01:38.5]} 24... e5 {[%clk
0:02:10.2]} 25. Bb7 {[%clk 0:01:33.7]} 25... Rb8 {[%clk 0:02:08.1]} 26. Bd5
{[%clk 0:01:30.2]} 26... Bd4 {[%clk 0:02:06.6]} 27. b4 {[%clk 0:01:27.5]} 27...
axb4 {[%clk 0:02:05.6]} 28. axb4 {[%clk 0:01:28.4]} 28... Rbc8 {[%clk
0:01:50.1]} 29. Rd2 {[%clk 0:01:09]} 29... f6 {[%clk 0:01:33.9]} 30. b5 {[%clk
0:01:00.2]} 30... Rfd8 {[%clk 0:01:06.8]} 31. Bf7+ {[%clk 0:00:50]} 31... Kg7
{[%clk 0:00:56.3]} 32. Rb7 {[%clk 0:00:34.8]} 32... Rb8 {[%clk 0:00:54.5]} 33.
Rc7 {[%clk 0:00:31.1]} 33... Rbc8 {[%clk 0:00:36.8]} 34. Rb7 {[%clk 0:00:27.6]}
34... Rc5 {[%clk 0:00:34.1]} 35. Be6+ {[%clk 0:00:23.4]} 35... Kg6 {[%clk
0:00:34.1]} 36. Bf7+ {[%clk 0:00:23.6]} 36... Kh6 {[%clk 0:00:34.2]} 37. Be6
{[%clk 0:00:24.1]} 37... e4 {[%clk 0:00:32.6]} 38. h4 {[%clk 0:00:18.7]} 38...
Re5 {[%clk 0:00:29.4]} 39. Rxd4 {[%clk 0:00:17.3]} 39... Rxd4 {[%clk 0:00:26.5]}
40. Bg8 {[%clk 0:00:17.1]} 40... Rd8 {[%clk 0:00:16.6]} 41. Rxh7+ {[%clk
0:00:13.4]} 41... Kg6 {[%clk 0:00:17]} 42. h5+ {[%clk 0:00:14]} 42... Kg5 {[%clk
0:00:17.5]} 43. Bf7 {[%clk 0:00:13.2]} 43... Re7 {[%clk 0:00:14.2]} 44. Rg7+
{[%clk 0:00:08.4]} 44... Kh6 {[%clk 0:00:14.4]} 45. Rg6+ {[%clk 0:00:08.8]}
45... Kh7 {[%clk 0:00:14.7]} 46. Bc4 {[%clk 0:00:05]} 46... Rf8 {[%clk 0:00:15]}
47. Bd5 {[%clk 0:00:03.9]} 47... Rg7 {[%clk 0:00:14.6]} 48. Rxg7+ {[%clk
0:00:03.4]} 48... Kxg7 {[%clk 0:00:14.6]} 49. Kf1 {[%clk 0:00:02.7]} 49... Re8
{[%clk 0:00:14.2]} 50. Ke2 {[%clk 0:00:02.5]} 50... Re5 {[%clk 0:00:15.1]} 51.
Bc6 {[%clk 0:00:02.6]} 51... Kh6 {[%clk 0:00:15.5]} 52. Ke3 {[%clk 0:00:03.2]}
52... Kxh5 {[%clk 0:00:15.7]} 53. Kf4 {[%clk 0:00:03.8]} 53... Kg6 {[%clk
0:00:16.1]} 54. Be8+ {[%clk 0:00:03.8]} 54... Rxe8 {[%clk 0:00:15.6]} 0-1

[Event "*** SCC Grand Prix: Titled Tuesday Blitz"]
[Site "Chess.com"]
[Date "2020.06.02"]
[Round "3"]
[White "Love_craft"]
[Black "I_Hit_18K_on_BS"]
[Result "1-0"]
[WhiteElo "2461"]
[BlackElo "2103"]
[TimeControl "180+1"]
[EndTime "10:29:51 PDT"]
[Termination "Love_craft won by resignation"]

1. Nf3 {[%clk 0:03:00.9]} 1... c5 {[%clk 0:02:59.4]} 2. e4 {[%clk 0:02:59.9]}
2... d6 {[%clk 0:02:59.4]} 3. d3 {[%clk 0:03:00]} 3... g6 {[%clk 0:02:55.4]} 4.
g3 {[%clk 0:02:59.2]} 4... Bg7 {[%clk 0:02:54.8]} 5. Bg2 {[%clk 0:02:59.8]} 5...
Nc6 {[%clk 0:02:54.7]} 6. O-O {[%clk 0:02:59.5]} 6... e6 {[%clk 0:02:52.2]} 7.
Nc3 {[%clk 0:02:58.5]} 7... Nge7 {[%clk 0:02:52]} 8. Be3 {[%clk 0:02:59.1]} 8...
O-O {[%clk 0:02:50.5]} 9. Qd2 {[%clk 0:02:59.7]} 9... b6 {[%clk 0:02:50.1]} 10.
Bh6 {[%clk 0:02:59.1]} 10... Bb7 {[%clk 0:02:48.6]} 11. Bxg7 {[%clk 0:02:59.4]}
11... Kxg7 {[%clk 0:02:47.6]} 12. d4 {[%clk 0:02:59.9]} 12... d5 {[%clk
0:02:44.9]} 13. e5 {[%clk 0:01:50.5]} 13... cxd4 {[%clk 0:02:33.7]} 14. Ne2
{[%clk 0:01:41.8]} 14... Qc7 {[%clk 0:02:17.5]} 15. Rfe1 {[%clk 0:01:29.2]}
15... Nxe5 {[%clk 0:01:49.5]} 16. Nxe5 {[%clk 0:01:17.9]} 16... Qxe5 {[%clk
0:01:50.4]} 17. Nxd4 {[%clk 0:01:18.6]} 17... Qf6 {[%clk 0:01:44.4]} 18. f4
{[%clk 0:01:13]} 18... Nc6 {[%clk 0:00:42.9]} 19. Nxc6 {[%clk 0:01:04.8]} 19...
Bxc6 {[%clk 0:00:43.8]} 20. c3 {[%clk 0:01:05.3]} 20... Rad8 {[%clk 0:00:35.2]}
21. Re5 {[%clk 0:01:04.7]} 21... Qe7 {[%clk 0:00:18.5]} 22. Rae1 {[%clk
0:01:03.1]} 22... Qc5+ {[%clk 0:00:15.8]} 23. Kh1 {[%clk 0:01:01.5]} 23... d4
{[%clk 0:00:14.4]} 24. Rxc5 {[%clk 0:01:00.5]} 24... Bxg2+ {[%clk 0:00:11.9]}
25. Qxg2 {[%clk 0:00:54.2]} 25... bxc5 {[%clk 0:00:12.8]} 26. Qe2 {[%clk
0:00:40.6]} 26... Rd5 {[%clk 0:00:11.9]} 27. c4 {[%clk 0:00:37.5]} 27... Rh5
{[%clk 0:00:06.3]} 28. g4 {[%clk 0:00:35.1]} 28... Rh4 {[%clk 0:00:06.7]} 29.
Qe5+ {[%clk 0:00:18.7]} 29... Kg8 {[%clk 0:00:06.7]} 30. Qe2 {[%clk 0:00:12.2]}
30... Rd8 {[%clk 0:00:05.5]} 31. Kg2 {[%clk 0:00:10.3]} 31... d3 {[%clk
0:00:05.7]} 32. Qf3 {[%clk 0:00:10.6]} 32... d2 {[%clk 0:00:06]} 33. Rd1 {[%clk
0:00:10.8]} 33... f5 {[%clk 0:00:06.3]} 34. h3 {[%clk 0:00:10.6]} 34... fxg4
{[%clk 0:00:06.1]} 35. hxg4 {[%clk 0:00:11.1]} 35... h5 {[%clk 0:00:06]} 36.
gxh5 {[%clk 0:00:10.7]} 36... gxh5 {[%clk 0:00:06.9]} 37. Kf2 {[%clk 0:00:09.6]}
37... Rg4 {[%clk 0:00:06.9]} 38. f5 {[%clk 0:00:09]} 38... Rdd4 {[%clk
0:00:04.9]} 39. Qa8+ {[%clk 0:00:08.7]} 39... Kg7 {[%clk 0:00:04.4]} 40. Qxa7+
{[%clk 0:00:08.8]} 40... Kf6 {[%clk 0:00:03.7]} 41. Qb7 {[%clk 0:00:05]} 41...
Rgf4+ {[%clk 0:00:04.1]} 42. Ke3 {[%clk 0:00:04.9]} 42... Rfe4+ {[%clk
0:00:04.2]} 43. Qxe4 {[%clk 0:00:04.5]} 43... Rxe4+ {[%clk 0:00:03.6]} 44. Kxe4
{[%clk 0:00:05.4]} 44... exf5+ {[%clk 0:00:04.1]} 45. Kf4 {[%clk 0:00:05.9]}
45... h4 {[%clk 0:00:05]} 46. Rxd2 {[%clk 0:00:06.3]} 46... h3 {[%clk
0:00:05.1]} 47. Rh2 {[%clk 0:00:06.7]} 47... Ke6 {[%clk 0:00:05.1]} 48. Rxh3
{[%clk 0:00:07.2]} 48... Kf6 {[%clk 0:00:06]} 49. Rh6+ {[%clk 0:00:07.3]} 49...
Kg7 {[%clk 0:00:06.4]} 50. Rc6 {[%clk 0:00:08.2]} 50... Kf7 {[%clk 0:00:06.3]}
51. Kxf5 {[%clk 0:00:08.6]} 51... Ke7 {[%clk 0:00:07.2]} 52. Rxc5 {[%clk
0:00:09.2]} 52... Kd7 {[%clk 0:00:08.1]} 53. Rd5+ {[%clk 0:00:09.9]} 53... Kc6
{[%clk 0:00:08.2]} 54. Ke5 {[%clk 0:00:10.6]} 54... Kb6 {[%clk 0:00:09.1]} 55.
Kd4 {[%clk 0:00:11.5]} 55... Ka6 {[%clk 0:00:08.5]} 56. Kc5 {[%clk 0:00:11.7]}
56... Kb7 {[%clk 0:00:08.5]} 57. Rd7+ {[%clk 0:00:11.6]} 57... Ka6 {[%clk
0:00:08.3]} 58. Rh7 {[%clk 0:00:11]} 1-0

[Event "*** SCC Grand Prix: Titled Tuesday Blitz"]
[Site "Chess.com"]
[Date "2020.06.02"]
[Round "3"]
[White "Sethu0025"]
[Black "gross-aleks"]
[Result "0-1"]
[WhiteElo "2787"]
[BlackElo "2559"]
[TimeControl "180+1"]
[EndTime "10:29:54 PDT"]
[Termination "gross-aleks won by resignation"]

1. d4 {[%clk 0:03:00.9]} 1... Nf6 {[%clk 0:02:59.2]} 2. c4 {[%clk 0:03:01.2]}
2... e6 {[%clk 0:02:59.5]} 3. Nf3 {[%clk 0:03:01.4]} 3... b6 {[%clk 0:02:59.3]}
4. a3 {[%clk 0:03:01]} 4... Bb7 {[%clk 0:02:58.8]} 5. Nc3 {[%clk 0:03:01]} 5...
d5 {[%clk 0:02:58.9]} 6. cxd5 {[%clk 0:03:01.4]} 6... exd5 {[%clk 0:02:58.6]} 7.
Qc2 {[%clk 0:03:02.1]} 7... a6 {[%clk 0:02:50.7]} 8. Bg5 {[%clk 0:03:01.4]} 8...
Nbd7 {[%clk 0:02:46.6]} 9. e3 {[%clk 0:03:00]} 9... Bd6 {[%clk 0:02:45.9]} 10.
Bd3 {[%clk 0:02:59.9]} 10... Qe7 {[%clk 0:02:44.9]} 11. h3 {[%clk 0:02:58.3]}
11... h6 {[%clk 0:02:38.5]} 12. Bxf6 {[%clk 0:02:53.2]} 12... Nxf6 {[%clk
0:02:35.2]} 13. O-O {[%clk 0:02:52.5]} 13... O-O {[%clk 0:02:33.7]} 14. Rfe1
{[%clk 0:02:52.4]} 14... Ne4 {[%clk 0:02:28.1]} 15. Bxe4 {[%clk 0:02:48.9]}
15... dxe4 {[%clk 0:02:27.8]} 16. Nd2 {[%clk 0:02:49.8]} 16... f5 {[%clk
0:02:15]} 17. Nc4 {[%clk 0:02:48.7]} 17... Rae8 {[%clk 0:02:01]} 18. Rac1 {[%clk
0:02:44]} 18... f4 {[%clk 0:01:48]} 19. Nxd6 {[%clk 0:02:41.3]} 19... Qxd6
{[%clk 0:01:47]} 20. exf4 {[%clk 0:02:38.5]} 20... Qxd4 {[%clk 0:01:34.2]} 21.
Ne2 {[%clk 0:02:36.2]} 21... Qf6 {[%clk 0:01:30.5]} 22. Qxc7 {[%clk 0:02:35.1]}
22... Rf7 {[%clk 0:01:27.9]} 23. Qc3 {[%clk 0:02:33.7]} 23... e3 {[%clk
0:01:25.6]} 24. Qxf6 {[%clk 0:02:31.7]} 24... Rxf6 {[%clk 0:01:23]} 25. fxe3
{[%clk 0:02:22.8]} 25... Rg6 {[%clk 0:01:18.8]} 26. g4 {[%clk 0:02:04.8]} 26...
Rxe3 {[%clk 0:01:17.8]} 27. Rc3 {[%clk 0:02:04.8]} 27... Rge6 {[%clk 0:01:14]}
28. Kf2 {[%clk 0:02:00.9]} 28... R3e4 {[%clk 0:01:07.3]} 29. Rc7 {[%clk
0:01:52.3]} 29... Bd5 {[%clk 0:01:00.9]} 30. Rc2 {[%clk 0:01:39.6]} 30... b5
{[%clk 0:00:44.3]} 31. f5 {[%clk 0:01:35.9]} 31... Re8 {[%clk 0:00:42.9]} 32.
Rec1 {[%clk 0:01:29.4]} 32... Re3 {[%clk 0:00:40.2]} 33. Rc8 {[%clk 0:01:26.6]}
33... Rxe2+ {[%clk 0:00:39.5]} 34. Kg3 {[%clk 0:01:16.9]} 34... Bc4 {[%clk
0:00:40.4]} 35. Rxe8+ {[%clk 0:01:13.2]} 35... Rxe8 {[%clk 0:00:41.3]} 36. Rc3
{[%clk 0:01:14.1]} 36... Rc8 {[%clk 0:00:33.4]} 37. Kf4 {[%clk 0:01:08.9]} 37...
Kf8 {[%clk 0:00:30.5]} 38. Ke5 {[%clk 0:01:01.9]} 38... Rd8 {[%clk 0:00:29]} 39.
Ke4 {[%clk 0:00:56.8]} 39... a5 {[%clk 0:00:28]} 40. b3 {[%clk 0:00:56.5]} 40...
Bd5+ {[%clk 0:00:27.2]} 41. Ke5 {[%clk 0:00:56.8]} 41... Bf7 {[%clk 0:00:27]}
42. Rc5 {[%clk 0:00:55.2]} 42... Bxb3 {[%clk 0:00:26.9]} 43. Rxb5 {[%clk
0:00:55.3]} 43... a4 {[%clk 0:00:27.8]} 44. h4 {[%clk 0:00:53.9]} 44... Re8+
{[%clk 0:00:27.8]} 45. Kf4 {[%clk 0:00:53.2]} 45... Re1 {[%clk 0:00:26.9]} 46.
g5 {[%clk 0:00:52]} 46... hxg5+ {[%clk 0:00:25.8]} 47. hxg5 {[%clk 0:00:52.9]}
47... Rf1+ {[%clk 0:00:25.7]} 48. Ke5 {[%clk 0:00:51.1]} 48... Re1+ {[%clk
0:00:26.6]} 49. Kf4 {[%clk 0:00:46.6]} 49... Ra1 {[%clk 0:00:26.3]} 50. Rb8+
{[%clk 0:00:45.8]} 50... Kf7 {[%clk 0:00:23.7]} 51. Rb7+ {[%clk 0:00:44.8]}
51... Kf8 {[%clk 0:00:23.8]} 52. Rb8+ {[%clk 0:00:44.9]} 52... Ke7 {[%clk
0:00:23.5]} 53. Rb7+ {[%clk 0:00:44.9]} 53... Kd6 {[%clk 0:00:23.9]} 54. Rxg7
{[%clk 0:00:42.1]} 54... Rxa3 {[%clk 0:00:24.8]} 55. Rg6+ {[%clk 0:00:42.1]}
55... Kc5 {[%clk 0:00:20.5]} 56. Ra6 {[%clk 0:00:41.9]} 56... Ra1 {[%clk
0:00:20.7]} 57. g6 {[%clk 0:00:40.8]} 57... Rg1 {[%clk 0:00:20.6]} 58. Ke5
{[%clk 0:00:37.6]} 58... Kb5 {[%clk 0:00:20.3]} 59. Ra8 {[%clk 0:00:37.1]} 59...
Kb4 {[%clk 0:00:20.5]} 60. Rb8+ {[%clk 0:00:29.6]} 60... Kc3 {[%clk 0:00:20.6]}
61. Rb7 {[%clk 0:00:25.5]} 61... a3 {[%clk 0:00:20.2]} 62. Ra7 {[%clk
0:00:25.4]} 62... a2 {[%clk 0:00:20.2]} 63. g7 {[%clk 0:00:25.9]} 63... a1=Q
{[%clk 0:00:18.8]} 64. Rxa1 {[%clk 0:00:25]} 64... Rxa1 {[%clk 0:00:19.3]} 65.
f6 {[%clk 0:00:24.6]} 65... Ra8 {[%clk 0:00:19.5]} 0-1

[Event "*** SCC Grand Prix: Titled Tuesday Blitz"]
[Site "Chess.com"]
[Date "2020.06.02"]
[Round "3"]
[White "DonPreuss"]
[Black "AlexOstrovskiy"]
[Result "1/2-1/2"]
[WhiteElo "2231"]
[BlackElo "2532"]
[TimeControl "180+1"]
[EndTime "10:29:54 PDT"]
[Termination "Game drawn - insufficient material"]

1. d4 {[%clk 0:03:00.9]} 1... e6 {[%clk 0:02:59.5]} 2. e4 {[%clk 0:03:01.1]}
2... d5 {[%clk 0:02:58.8]} 3. Nc3 {[%clk 0:03:01.5]} 3... Nc6 {[%clk 0:02:57.9]}
4. Be3 {[%clk 0:02:53.6]} 4... Bb4 {[%clk 0:02:24.8]} 5. e5 {[%clk 0:02:44.6]}
5... Nge7 {[%clk 0:02:19.6]} 6. f4 {[%clk 0:02:33.9]} 6... Nf5 {[%clk 0:02:17]}
7. Qd2 {[%clk 0:02:32.7]} 7... Nxe3 {[%clk 0:02:12.6]} 8. Qxe3 {[%clk
0:02:31.9]} 8... Ne7 {[%clk 0:02:08]} 9. Bd3 {[%clk 0:02:26]} 9... c5 {[%clk
0:02:05.4]} 10. Nf3 {[%clk 0:02:23.2]} 10... Qa5 {[%clk 0:01:52.6]} 11. O-O
{[%clk 0:02:21.1]} 11... cxd4 {[%clk 0:01:36.4]} 12. Nxd4 {[%clk 0:02:16.4]}
12... Nc6 {[%clk 0:01:31.1]} 13. Nce2 {[%clk 0:02:14.6]} 13... g6 {[%clk
0:01:20]} 14. c3 {[%clk 0:02:08.8]} 14... Be7 {[%clk 0:01:18.3]} 15. b4 {[%clk
0:01:35.7]} 15... Qd8 {[%clk 0:01:16.4]} 16. Kh1 {[%clk 0:01:28.8]} 16... a6
{[%clk 0:01:15]} 17. a4 {[%clk 0:01:04.5]} 17... Bd7 {[%clk 0:01:13.5]} 18. Nxc6
{[%clk 0:01:00.8]} 18... bxc6 {[%clk 0:01:13]} 19. Nd4 {[%clk 0:00:55.7]} 19...
c5 {[%clk 0:01:06.9]} 20. bxc5 {[%clk 0:00:56]} 20... Bxc5 {[%clk 0:01:07.8]}
21. f5 {[%clk 0:00:53.6]} 21... gxf5 {[%clk 0:00:58.8]} 22. Qh6 {[%clk
0:00:51.8]} 22... Bf8 {[%clk 0:00:47.9]} 23. Qh5 {[%clk 0:00:51.2]} 23... Bg7
{[%clk 0:00:46.1]} 24. Rae1 {[%clk 0:00:48.3]} 24... Qe7 {[%clk 0:00:10.7]} 25.
a5 {[%clk 0:00:39.2]} 25... Rc8 {[%clk 0:00:10.2]} 26. Bxf5 {[%clk 0:00:28]}
26... Rxc3 {[%clk 0:00:06.5]} 27. Bh3 {[%clk 0:00:19.6]} 27... Rc4 {[%clk
0:00:06.7]} 28. Nf3 {[%clk 0:00:18.8]} 28... h6 {[%clk 0:00:05.1]} 29. Rb1
{[%clk 0:00:15.7]} 29... O-O {[%clk 0:00:05]} 30. Rb7 {[%clk 0:00:11.6]} 30...
f6 {[%clk 0:00:04.2]} 31. Qg6 {[%clk 0:00:10.8]} 31... Qf7 {[%clk 0:00:04]} 32.
Qxf7+ {[%clk 0:00:10.4]} 32... Rxf7 {[%clk 0:00:04.9]} 33. Rxd7 {[%clk
0:00:08.9]} 33... Rxd7 {[%clk 0:00:04.6]} 34. Bxe6+ {[%clk 0:00:09.5]} 34... Rf7
{[%clk 0:00:05.5]} 35. exf6 {[%clk 0:00:08.1]} 35... Bxf6 {[%clk 0:00:05.3]} 36.
Bxf7+ {[%clk 0:00:07.9]} 36... Kxf7 {[%clk 0:00:04.8]} 37. Ne5+ {[%clk
0:00:08.2]} 37... Ke6 {[%clk 0:00:05.5]} 38. Nxc4 {[%clk 0:00:08.8]} 38... dxc4
{[%clk 0:00:06.4]} 39. Rc1 {[%clk 0:00:07.5]} 39... c3 {[%clk 0:00:07.3]} 40.
Kg1 {[%clk 0:00:06.9]} 40... Kd5 {[%clk 0:00:07.9]} 41. Kf1 {[%clk 0:00:07.3]}
41... Kc4 {[%clk 0:00:08.4]} 42. Ke2 {[%clk 0:00:08]} 42... Kb3 {[%clk 0:00:08]}
43. Kd3 {[%clk 0:00:08.4]} 43... h5 {[%clk 0:00:05.7]} 44. Rc2 {[%clk
0:00:08.2]} 44... Be5 {[%clk 0:00:05.3]} 45. h3 {[%clk 0:00:07.1]} 45... h4
{[%clk 0:00:05.6]} 46. Re2 {[%clk 0:00:06.8]} 46... Bc7 {[%clk 0:00:04.3]} 47.
Rc2 {[%clk 0:00:05.9]} 47... Bxa5 {[%clk 0:00:04.7]} 48. g4 {[%clk 0:00:03.3]}
48... hxg3 {[%clk 0:00:04.6]} 49. h4 {[%clk 0:00:04]} 49... Bb4 {[%clk
0:00:02.8]} 50. h5 {[%clk 0:00:04.3]} 50... Bf8 {[%clk 0:00:02.3]} 51. Rg2
{[%clk 0:00:03.7]} 51... Bh6 {[%clk 0:00:01.5]} 52. Rc2 {[%clk 0:00:02.8]} 52...
a5 {[%clk 0:00:01.5]} 53. Rxc3+ {[%clk 0:00:02.5]} 53... Kb4 {[%clk 0:00:02.4]}
54. Rc4+ {[%clk 0:00:02.2]} 54... Kb3 {[%clk 0:00:02.6]} 55. Rg4 {[%clk
0:00:02.8]} 55... a4 {[%clk 0:00:02.5]} 56. Rxg3 {[%clk 0:00:03.2]} 56... a3
{[%clk 0:00:03.4]} 57. Rg2 {[%clk 0:00:03.1]} 57... a2 {[%clk 0:00:03.6]} 58.
Rxa2 {[%clk 0:00:02.3]} 58... Kxa2 {[%clk 0:00:04.5]} 59. Ke4 {[%clk 0:00:02.9]}
59... Kb3 {[%clk 0:00:05.2]} 60. Kf5 {[%clk 0:00:03.8]} 60... Kc4 {[%clk
0:00:06.1]} 61. Kg6 {[%clk 0:00:04.7]} 61... Bc1 {[%clk 0:00:06.5]} 62. h6
{[%clk 0:00:05.6]} 62... Bxh6 {[%clk 0:00:06.7]} 1/2-1/2

[Event "*** SCC Grand Prix: Titled Tuesday Blitz"]
[Site "Chess.com"]
[Date "2020.06.02"]
[Round "3"]
[White "ShahMatKanal"]
[Black "GoValya"]
[Result "1-0"]
[WhiteElo "2470"]
[BlackElo "2178"]
[TimeControl "180+1"]
[EndTime "10:29:57 PDT"]
[Termination "ShahMatKanal won by checkmate"]

1. d4 {[%clk 0:03:00.9]} 1... g6 {[%clk 0:02:59.4]} 2. c4 {[%clk 0:03:00.2]}
2... Bg7 {[%clk 0:02:59.5]} 3. Nc3 {[%clk 0:03:00.1]} 3... c5 {[%clk 0:02:59.4]}
4. e3 {[%clk 0:02:57.3]} 4... cxd4 {[%clk 0:02:54]} 5. exd4 {[%clk 0:02:56.5]}
5... Nc6 {[%clk 0:02:53.8]} 6. Nf3 {[%clk 0:02:53.3]} 6... d6 {[%clk 0:02:52.2]}
7. h3 {[%clk 0:02:51]} 7... Qb6 {[%clk 0:02:41.9]} 8. Nd5 {[%clk 0:02:44.2]}
8... Qd8 {[%clk 0:02:23.3]} 9. Be2 {[%clk 0:02:30.8]} 9... Nf6 {[%clk
0:02:22.2]} 10. Nc3 {[%clk 0:02:12.9]} 10... O-O {[%clk 0:02:16.9]} 11. O-O
{[%clk 0:02:12.4]} 11... e5 {[%clk 0:02:10.7]} 12. Bg5 {[%clk 0:01:56.5]} 12...
h6 {[%clk 0:01:58.6]} 13. dxe5 {[%clk 0:01:54.5]} 13... dxe5 {[%clk 0:01:39.3]}
14. Qxd8 {[%clk 0:01:50.1]} 14... Rxd8 {[%clk 0:01:38.2]} 15. Be3 {[%clk
0:01:01.5]} 15... Be6 {[%clk 0:01:29.4]} 16. Rfd1 {[%clk 0:00:45.3]} 16... Rac8
{[%clk 0:01:18.4]} 17. Rac1 {[%clk 0:00:43.5]} 17... g5 {[%clk 0:01:02.1]} 18.
b3 {[%clk 0:00:39]} 18... g4 {[%clk 0:01:00.2]} 19. hxg4 {[%clk 0:00:27.3]}
19... Nxg4 {[%clk 0:01:00.1]} 20. Bc5 {[%clk 0:00:26.5]} 20... Nd4 {[%clk
0:00:55]} 21. Nxd4 {[%clk 0:00:22.9]} 21... exd4 {[%clk 0:00:54.9]} 22. Ne4
{[%clk 0:00:16.6]} 22... b6 {[%clk 0:00:48.5]} 23. Ba3 {[%clk 0:00:13.9]} 23...
Ne5 {[%clk 0:00:40.1]} 24. f4 {[%clk 0:00:12.1]} 24... d3 {[%clk 0:00:37]} 25.
Bf1 {[%clk 0:00:11.9]} 25... Ng4 {[%clk 0:00:31.9]} 26. Rxd3 {[%clk 0:00:09.1]}
26... Bd4+ {[%clk 0:00:30.4]} 27. Rxd4 {[%clk 0:00:06]} 27... Rxd4 {[%clk
0:00:29.4]} 28. Ng3 {[%clk 0:00:03.9]} 28... Rcd8 {[%clk 0:00:27.4]} 29. Nh5
{[%clk 0:00:02.8]} 29... Rd1 {[%clk 0:00:25.7]} 30. Rxd1 {[%clk 0:00:01.9]}
30... Rxd1 {[%clk 0:00:25.3]} 31. Ng3 {[%clk 0:00:02.1]} 31... Ne3 {[%clk
0:00:24]} 32. Kf2 {[%clk 0:00:01.6]} 32... Nc2 {[%clk 0:00:24]} 33. Bb2 {[%clk
0:00:01.2]} 33... Rb1 {[%clk 0:00:23.1]} 34. Bc3 {[%clk 0:00:01.1]} 34... Rc1
{[%clk 0:00:19.4]} 35. Bd3 {[%clk 0:00:01.3]} 35... Na3 {[%clk 0:00:18]} 36. Bd2
{[%clk 0:00:01.6]} 36... Rd1 {[%clk 0:00:17.5]} 37. Ne2 {[%clk 0:00:01.3]} 37...
Rxd2 {[%clk 0:00:17.3]} 38. Ke3 {[%clk 0:00:01.7]} 38... Rxa2 {[%clk 0:00:16.6]}
39. f5 {[%clk 0:00:02.2]} 39... Nc2+ {[%clk 0:00:16.8]} 40. Kf3 {[%clk 0:00:02]}
40... Ne1+ {[%clk 0:00:16]} 41. Ke3 {[%clk 0:00:01.8]} 41... Nxd3 {[%clk
0:00:16.9]} 42. fxe6 {[%clk 0:00:02]} 42... fxe6 {[%clk 0:00:17.1]} 43. Kxd3
{[%clk 0:00:02.3]} 43... Rb2 {[%clk 0:00:17.6]} 44. Nd4 {[%clk 0:00:01.9]} 44...
Ra2 {[%clk 0:00:18.5]} 45. g4 {[%clk 0:00:02.2]} 45... Ra1 {[%clk 0:00:19.2]}
46. Nxe6 {[%clk 0:00:02.5]} 46... Rd1+ {[%clk 0:00:19.9]} 47. Ke4 {[%clk
0:00:02.3]} 47... Kf7 {[%clk 0:00:19.7]} 48. Nd4 {[%clk 0:00:01.2]} 48... Ke7
{[%clk 0:00:20.6]} 49. Kd5 {[%clk 0:00:01.4]} 49... Re1 {[%clk 0:00:21.5]} 50.
b4 {[%clk 0:00:02.1]} 50... Rd1 {[%clk 0:00:21.7]} 51. b5 {[%clk 0:00:03]} 51...
Rd2 {[%clk 0:00:21.4]} 52. Ke4 {[%clk 0:00:02.8]} 52... Rd3 {[%clk 0:00:22.3]}
53. Kxd3 {[%clk 0:00:02.3]} 53... Kd6 {[%clk 0:00:23.2]} 54. Ke4 {[%clk
0:00:03.2]} 54... Kc5 {[%clk 0:00:23.8]} 55. Kd3 {[%clk 0:00:03.6]} 55... Kb4
{[%clk 0:00:23.5]} 56. Nf5 {[%clk 0:00:03.9]} 56... Kc5 {[%clk 0:00:24.4]} 57.
Nxh6 {[%clk 0:00:04.1]} 57... Kb4 {[%clk 0:00:25.3]} 58. Nf5 {[%clk 0:00:04.4]}
58... Kc5 {[%clk 0:00:25.1]} 59. g5 {[%clk 0:00:04.2]} 59... a6 {[%clk
0:00:25.1]} 60. bxa6 {[%clk 0:00:04.1]} 60... b5 {[%clk 0:00:25.3]} 61. cxb5
{[%clk 0:00:04]} 61... Kxb5 {[%clk 0:00:25.4]} 62. g6 {[%clk 0:00:04.5]} 62...
Kc5 {[%clk 0:00:26.3]} 63. g7 {[%clk 0:00:04.8]} 63... Kb6 {[%clk 0:00:25.9]}
64. g8=Q {[%clk 0:00:05.1]} 64... Kxa6 {[%clk 0:00:26.8]} 65. Qb3 {[%clk
0:00:04.7]} 65... Ka7 {[%clk 0:00:26.3]} 66. Nd6 {[%clk 0:00:04.7]} 66... Ka8
{[%clk 0:00:26.2]} 67. Qb7# {[%clk 0:00:04.7]} 1-0